bitfinex-derivatives/quotes_ETHF0:USTF0_20240904
["timestamp","ask_amount","ask_price","bid_price","bid_amount"]
[1725493453452,3.22795,2451.4,2451.0,0.7812]
[1725493453650,2.82,2451.4,2451.0,0.3732]
[1725493453851,3.22796,2451.4,2451.0,0.3732]
[1725493454057,3.22795,2451.4,2451.1,0.3681]
[1725493454457,6.43575,2451.4,2451.1,0.3681]
[1725493454659,0.40797,2451.3,2451.1,0.3681]
[1725493457659,3.22799,2451.2,2450.9,0.77403]
[1725493457863,2.82,2451.2,2450.9,1.15552]
[1725493458358,2.82,2451.2,2451.0,0.40801]
[1725493458551,0.40797,2451.3,2451.1,0.3839]
[1725493461654,0.40798,2451.2,2451.1,0.3839]
[1725493462361,3.22798,2451.2,2451.1,0.3839]
[1725493462956,0.40801,2451.1,2450.9,0.366]
[1725493464263,3.22801,2451.0,2450.9,0.366]
[1725493465164,0.40801,2451.0,2450.9,0.366]
[1725493465862,0.408,2451.1,2450.9,0.366]
[1725493466157,2.82,2451.2,2450.9,0.77403]
[1725493466158,3.22799,2451.2,2450.9,0.77403]
[1725493466858,3.22799,2451.2,2451.0,0.3721]
[1725493467462,3.22799,2451.2,2451.1,0.3574]
[1725493467663,3.5628,2451.3,2451.1,0.3574]
[1725493467664,3.97076,2451.3,2451.1,0.3574]
[1725493467863,3.61576,2451.3,2451.1,0.3574]
[1725493468568,3.61576,2451.3,2451.1,0.7654]
[1725493468865,3.2078,2451.3,2451.2,0.40798]
[1725493469069,3.1972,2451.4,2451.2,0.40798]
[1725493469268,2.82,2451.4,2451.3,0.3757]
[1725493470469,3.22795,2451.4,2451.3,0.3757]
[1725493470665,2.82,2451.4,2451.3,0.3757]
[1725493471166,3.22795,2451.4,2451.3,0.3757]
[1725493471567,2.82,2451.4,2451.3,0.3757]
[1725493474570,3.21222132,2451.6,2451.3,0.3757]
[1725493474768,0.00612132,2451.6,2451.5,0.40793]
[1725493474959,0.00612132,2451.6,2451.3,0.3757]
[1725493474960,0.00612132,2451.6,2451.4,0.78354]
[1725493475272,0.00612132,2451.6,2451.5,0.3802]
[1725493476074,3.23403132,2451.6,2451.5,0.3802]
[1725493477171,0.00612132,2451.6,2451.5,0.3802]
[1725493477668,0.41403132,2451.6,2451.5,0.3802]
[1725493487570,0.41403132,2451.6,2451.2,3.2078]
[1725493487571,0.40796,2451.3,2451.2,3.2078]
[1725493487876,0.40798,2451.2,2451.1,1.1266]
[1725493488877,0.40795,2451.4,2451.1,5.61458]
[1725493489076,0.40795,2451.4,2451.1,1.53458]
[1725493489472,1.18,2451.3,2451.1,1.1266]
[1725493489668,1.18,2451.3,2451.1,1.5346]
[1725493490073,3.22795,2451.4,2451.1,1.5346]
[1725493493569,2.82,2451.4,2451.1,1.5346]
[1725493493772,3.22795,2451.4,2451.1,1.5346]
[1725493495873,3.22795,2451.4,2451.2,0.40798]
[1725493496067,0.40795,2451.4,2451.2,0.40798]
[1725493496374,0.40797,2451.3,2451.1,1.53459]
[1725493497275,0.40798,2451.2,2451.1,1.1266]
[1725493497475,0.40797,2451.3,2451.1,1.1266]
[1725493497669,0.40797,2451.3,2451.1,0.7676]
[1725493497870,0.76887,2451.3,2451.1,0.7676]
[1725493499391,2.82,2451.4,2451.1,0.7676]
[1725493499392,3.22796,2451.4,2451.1,0.7676]
[1725493499684,3.2078,2451.5,2451.1,1.17559]
[1725493499981,0.40795,2451.4,2451.1,0.7676]
[1725493500577,3.61574,2451.5,2451.1,1.17559]
[1725493500772,0.40795,2451.4,2451.1,1.17559]
[1725493501779,0.40795,2451.4,2451.1,0.7676]
[1725493502171,0.40795,2451.4,2451.1,1.17559]
[1725493503974,0.40795,2451.4,2451.1,0.7676]
[1725493504174,0.40795,2451.4,2451.1,1.17559]
[1725493505985,3.2078,2451.5,2451.2,0.40797]
[1725493506182,3.2078,2451.5,2451.3,0.3893]
[1725493506679,3.2078,2451.5,2451.3,0.79726]
[1725493507183,3.23405132,2451.6,2451.3,0.79726]
[1725493507382,3.23404132,2451.6,2451.3,0.79726]
[1725493508476,3.23404132,2451.6,2451.3,0.3893]
[1725493508783,3.23404132,2451.6,2451.3,0.79726]
[1725493508981,2.82,2451.4,2451.1,3.2078]
[1725493509187,2.82,2451.4,2451.1,4.3039]
[1725493509478,3.61236,2451.4,2451.1,4.71189]
[1725493509685,0.40796,2451.3,2451.1,4.3039]
[1725493510685,3.61236,2451.4,2451.1,4.71189]
[1725493511099,3.61236,2451.4,2451.2,0.40796]
[1725493511100,2.82,2451.4,2451.2,0.40796]
[1725493511385,0.00612132,2451.6,2451.3,0.40796]
[1725493511386,0.41404132,2451.6,2451.3,0.40796]
[1725493511584,0.00612132,2451.6,2451.5,0.40793]
[1725493511782,0.00612132,2451.6,2451.1,5.36722838]
[1725493512084,0.00612132,2451.6,2451.4,0.40794]
[1725493512280,0.00612132,2451.6,2451.5,1.1164]
[1725493513083,1.59403132,2451.6,2451.5,1.1164]
[1725493518685,1.18,2451.0,2450.7,1.56306]
[1725493520090,0.40803,2450.9,2450.7,1.56306]
[1725493520491,1.58802,2451.0,2450.8,0.40805]
[1725493520793,1.58802,2451.0,2450.7,1.56305]
[1725493521893,1.58802,2451.0,2450.8,0.40804]
[1725493524595,1.18,2451.1,2450.7,1.155]
[1725493524897,3.9673,2451.2,2451.0,0.408]
[1725493524898,3.5918,2451.2,2451.0,0.408]
[1725493525102,3.5918,2451.2,2451.1,1.5061]
[1725493525397,3.5918,2451.2,2451.1,1.0981]
[1725493526100,3.5918,2451.2,2451.1,1.5061]
[1725493526692,3.99978,2451.2,2451.1,1.0981]
[1725493528095,3.99978,2451.2,2450.6,5.49464516]
[1725493528096,3.99978,2451.2,2450.9,0.40802]
[1725493528303,1.18,2451.1,2450.9,0.40802]
[1725493528601,1.588,2451.1,2450.9,0.40802]
[1725493529091,0.40803,2450.9,2450.8,0.3754]
[1725493529295,0.40806,2450.8,2450.6,3.5963]
[1725493529498,0.78026,2450.8,2450.6,3.5963]
[1725493529895,0.3722,2450.8,2450.6,4.00438]
[1725493530099,0.78025,2450.8,2450.6,3.5963]
[1725493530697,0.78025,2450.8,2450.6,0.3885]
[1725493533797,0.40806,2450.7,2450.6,0.3885]
[1725493533996,0.40808,2450.6,2450.5,0.36332132]
[1725493536610,4.79587,2450.7,2450.5,0.36332132]
[1725493538004,4.79588,2450.7,2450.5,0.36332132]
[1725493538609,0.40808,2450.6,2450.5,0.36332132]
[1725493539815,1.58807,2450.7,2450.5,0.36332132]
[1725493540018,3.61588,2450.6,2450.5,0.00612132]
[1725493541212,3.99838,2450.6,2450.5,0.00612132]
[1725493541513,5.01858,2450.6,2450.5,0.00612132]
[1725493541711,0.40815,2450.2,2450.0,0.095]
[1725493542014,0.40815,2450.2,2450.0,1.126]
[1725493543116,1.59426132,2450.3,2450.0,1.53418]
[1725493543708,1.59426132,2450.3,2450.1,0.40816]
[1725493543902,1.59426132,2450.3,2450.0,1.53417]
[1725493544112,1.59426132,2450.3,2450.1,0.40816]
[1725493547011,0.40816,2450.2,2450.0,1.126]
[1725493547508,0.40816,2450.2,2450.0,1.53417]
[1725493548605,1.18612132,2450.3,2450.1,0.40816]
[1725493548606,1.59426132,2450.3,2450.1,0.40816]
[1725493549413,1.18612132,2450.3,2450.1,0.40816]
[1725493550017,1.18612132,2450.3,2450.2,0.40815]
[1725493550209,1.59425132,2450.3,2450.1,0.40815]
[1725493550401,1.18612132,2450.3,2450.1,0.40815]
[1725493550601,1.59425132,2450.3,2450.1,0.40815]
[1725493551614,1.18612132,2450.3,2450.1,0.40815]
[1725493552206,1.59425132,2450.3,2450.1,0.40815]
[1725493552809,1.18612132,2450.3,2450.1,0.40815]
[1725493553606,1.18612132,2450.3,2450.0,1.126]
[1725493553607,1.18612132,2450.3,2450.2,0.40815]
[1725493553806,1.18612132,2450.3,2450.1,0.40815]
[1725493554212,1.18612132,2450.3,2450.2,0.40815]
[1725493554418,0.00612132,2450.3,2450.2,0.40815]
[1725493554713,0.00612132,2450.3,2450.2,5.51012]
[1725493555211,0.00612132,2450.3,2450.2,4.48975]
[1725493555407,0.00612132,2450.3,2450.2,7.69755]
[1725493555608,0.00612132,2450.3,2450.2,4.48975]
[1725493556406,0.00612132,2450.3,2450.2,7.69755]
[1725493556609,0.00612132,2450.3,2450.2,4.48975]
[1725493558512,0.41426132,2450.3,2450.0,1.126]
[1725493558812,0.41426132,2450.3,2450.1,8.44392788]
[1725493558813,1.58816,2450.2,2450.1,8.44392788]
[1725493560110,1.58815,2450.2,2450.0,1.126]
[1725493560703,0.40818,2450.0,2449.9,0.00612132]
[1725493560908,1.58818,2450.0,2449.9,0.00612132]
[1725493561116,5.66978,2450.0,2449.9,0.00612132]
[1725493562120,1.58818,2450.0,2449.9,0.00612132]
[1725493563122,6.69023,2450.0,2449.9,0.00612132]
[1725493565717,12.69023,2450.0,2449.9,0.00612132]
[1725493566116,12.69023,2450.0,2449.5,0.095]
[1725493566117,1.42887,2449.6,2449.5,0.095]
[1725493566312,0.40836,2448.9,2448.8,1.1066]
[1725493566516,1.58836,2448.9,2448.8,1.1066]
[1725493566914,1.58836,2448.9,2448.8,0.3791]
[1725493567412,0.4084,2448.8,2448.4,0.7491]
[1725493567613,1.18,2448.7,2448.5,0.40843]
[1725493568319,1.5884,2448.7,2448.4,0.7491]
[1725493568518,1.18,2448.7,2448.4,0.7491]
[1725493569023,1.18,2448.5,2448.4,1.15754]
[1725493569317,0.204,2449.6,2448.6,1.02104]
[1725493569514,0.204,2449.6,2448.5,17.91344097]
[1725493569515,1.18,2449.5,2449.4,0.40828]
[1725493569714,1.58827,2449.5,2449.2,0.40831]
[1725493569919,2.82,2449.4,2449.2,3.2078]
[1725493570119,2.82,2449.4,2449.2,3.61611]
[1725493571321,2.82,2449.4,2449.2,0.40831]
[1725493571770,0.00612132,2449.5,2449.2,3.2078]
[1725493572232,0.41438132,2449.5,2449.2,0.4083]
[1725493572421,0.41438132,2449.5,2449.1,4.76444132]
[1725493572728,3.22829,2449.4,2449.1,4.76445132]
[1725493572915,3.22829,2449.4,2449.1,4.35612132]
[1725493573117,3.22829,2449.4,2449.1,4.76445132]
[1725493573324,3.22829,2449.4,2449.1,4.35612132]
[1725493574024,3.22829,2449.4,2449.1,4.76444132]
[1725493574224,2.82,2449.4,2449.2,0.40831]
[1725493574925,0.00612132,2449.5,2449.4,0.40828]
[1725493575435,0.00612132,2449.5,2449.3,0.40829]
[1725493576627,0.00612132,2449.5,2449.4,0.40828]
[1725493576928,0.00612132,2449.5,2449.4,3.61608]
[1725493579327,0.095,2449.9,2449.8,0.40821]
[1725493579528,3.5919,2450.4,2450.3,0.40813]
[1725493579825,3.5919,2450.4,2450.2,3.61593]
[1725493579826,3.2096,2450.4,2450.2,3.61593]
[1725493580030,3.2096,2450.4,2450.3,0.40813]
[1725493580031,3.61771,2450.4,2450.3,0.40813]
[1725493580321,3.2096,2450.4,2450.3,0.40813]
[1725493581730,3.2096,2450.4,2450.2,3.2078]
[1725493581731,7.69851,2450.4,2450.2,3.61593]
[1725493582032,3.61771,2450.4,2450.2,0.40813]
[1725493583824,3.2096,2450.4,2450.0,0.7305]
[1725493584130,3.61772,2450.4,2450.2,0.40814]
[1725493585967,2.82,2450.4,2450.0,3.9383]
[1725493586168,3.22812,2450.4,2450.0,3.9383]
[1725493586333,2.82,2450.4,2450.3,0.40813]
[1725493587336,3.21392132,2450.6,2450.5,0.4081]
[1725493587534,0.00612132,2450.6,2450.5,0.4081]
[1725493588134,0.00612132,2450.6,2450.5,0.7953]
[1725493591333,0.41420132,2450.6,2450.4,0.7437]
[1725493592135,0.00612132,2450.6,2450.4,0.7437]
[1725493592734,0.00612132,2450.6,2450.5,0.4081]
[1725493593530,0.41420132,2450.6,2450.5,0.4081]
[1725493593939,0.00612132,2450.6,2450.5,0.4081]
[1725493594844,0.41420132,2450.6,2450.5,0.4081]
[1725493597754,0.41420132,2450.6,2450.4,4.3596]
[1725493597940,5.10105,2450.5,2450.1,3.2078]
[1725493598135,0.40815,2450.2,2450.1,3.2078]
[1725493599296,0.40815,2450.2,2450.1,3.61596]
[1725493599743,0.40815,2450.2,2450.1,3.2078]
[1725493600249,0.40815,2450.2,2449.9,4.197]
[1725493600250,0.40818,2450.0,2449.9,4.197]
[1725493600441,3.84045,2450.0,2449.6,1.1428]
[1725493600750,3.22823,2449.7,2449.4,0.40827]
[1725493601055,3.22823,2449.7,2449.4,3.9577]
[1725493601248,3.22823,2449.7,2449.4,4.36598]
[1725493601249,2.82,2449.7,2449.4,4.36598]
[1725493602647,3.22823,2449.7,2449.4,4.36598]
[1725493603041,2.82,2449.7,2449.4,0.3703]
[1725493603246,0.40828,2449.4,2449.2,0.3679]
[1725493603450,2.82,2449.3,2449.1,3.21392132]
[1725493603755,2.82,2449.3,2449.1,0.00612132]
[1725493603756,0.40831,2449.2,2449.1,0.00612132]
[1725493604141,4.49151,2449.2,2449.1,0.00612132]
[1725493610649,4.0832,2449.2,2449.1,0.00612132]
[1725493610852,3.22831,2449.3,2449.1,0.00612132]
[1725493611248,0.40831,2449.2,2449.1,0.00612132]
[1725493611651,4.49151,2449.2,2449.1,0.00612132]
[1725493613656,2.82,2449.3,2449.1,0.00612132]
[1725493613657,3.2283,2449.3,2449.1,0.00612132]
[1725493613854,2.82,2449.3,2449.1,0.78115132]
[1725493614051,3.2078,2449.5,2449.3,0.40829]
[1725493614252,3.2078,2449.5,2449.2,0.7488]
[1725493614458,0.40829,2449.4,2449.2,0.7488]
[1725493615554,0.40829,2449.4,2449.1,0.78114132]
[1725493615859,0.40829,2449.4,2449.2,0.7488]
[1725493616649,6.0278,2449.5,2449.1,0.37282132]
[1725493616650,0.40831,2449.2,2449.1,0.37282132]
[1725493619558,0.40831,2449.2,2448.9,4.35465]
[1725493619559,0.40841,2448.7,2448.6,3.2078]
[1725493619776,0.40849,2448.2,2448.0,0.095]
[1725493619959,2.82,2448.1,2447.6,3.2078]
[1725493620261,3.2285,2448.1,2448.0,0.3584]
[1725493620654,2.82,2448.1,2448.0,0.3584]
[1725493620956,3.2285,2448.1,2448.0,0.3584]
[1725493621560,2.82,2448.1,2448.0,0.3584]
[1725493621859,0.40852,2448.0,2447.8,0.00612132]
[1725493622057,0.40853,2447.9,2447.8,0.00612132]
[1725493622250,7.31333,2447.9,2447.8,0.00612132]
[1725493623253,8.33466,2447.9,2447.8,0.00612132]
[1725493623453,7.31333,2447.9,2447.8,0.00612132]
[1725493627162,2.82,2447.9,2447.8,0.41467132]
[1725493627364,2.82,2448.1,2447.8,0.00612132]
[1725493627560,0.40851,2448.0,2447.9,0.361]
[1725493627760,3.22851,2448.1,2447.9,0.361]
[1725493627959,0.40851,2448.0,2447.9,0.361]
[1725493628470,3.22851,2448.1,2447.9,0.361]
[1725493628758,3.22851,2448.1,2447.9,0.76952]
[1725493629165,3.22851,2448.1,2447.9,0.361]
[1725493629553,3.22851,2448.1,2447.9,0.76953]
[1725493629764,2.82,2448.1,2447.9,0.76953]
[1725493629970,3.2285,2448.1,2447.9,0.76952]
[1725493630162,3.2285,2448.1,2447.9,0.361]
[1725493630364,0.40851,2448.0,2447.9,0.361]
[1725493630764,0.40851,2448.0,2447.8,0.74782132]
[1725493630956,2.82,2447.9,2447.8,0.74782132]
[1725493631567,3.22853,2447.9,2447.8,0.74782132]
[1725493631756,2.82,2447.9,2447.8,0.74782132]
[1725493632161,3.22853,2447.9,2447.8,0.74782132]
[1725493632361,2.82,2447.9,2447.8,0.74782132]
[1725493633162,3.22853,2447.9,2447.8,0.74782132]
[1725493633363,2.82,2447.9,2447.8,0.74782132]
[1725493633566,3.22853,2447.9,2447.8,0.74782132]
[1725493633760,3.22853,2447.9,2447.8,0.00612132]
[1725493633761,7.31413,2447.9,2447.8,0.00612132]
[1725493634368,7.68493,2447.9,2447.8,0.00612132]
[1725493634762,8.05113,2447.9,2447.8,0.00612132]
[1725493635270,8.05113,2447.9,2447.4,0.095]
[1725493635271,1.4301,2447.5,2447.4,0.095]
[1725493635468,1.4301,2447.5,2447.0,3.5829]
[1725493635469,0.40865,2447.2,2447.0,3.5829]
[1725493635766,0.40864,2447.3,2447.0,3.5829]
[1725493635972,2.82,2447.2,2446.7,0.00324238]
[1725493636163,2.82,2447.0,2446.7,0.37824238]
[1725493637159,3.2078,2447.3,2446.8,3.2078]
[1725493637372,3.61643,2447.3,2447.0,0.40866]
[1725493637666,2.82,2447.1,2446.8,3.6165]
[1725493637867,3.22866,2447.1,2446.8,3.6165]
[1725493638063,2.82,2447.1,2446.9,0.40869]
[1725493638470,2.82,2447.1,2446.9,0.4087]
[1725493638660,2.82,2447.1,2446.8,3.2078]
[1725493638866,2.82,2447.1,2446.8,3.6165]
[1725493639074,2.82,2447.1,2446.9,0.40869]
[1725493639277,0.4087,2446.9,2446.7,3.58604238]
[1725493639465,0.40871,2446.8,2446.7,0.37824238]
[1725493640502,0.40871,2446.8,2446.7,0.00324238]
[1725493640573,2.82,2446.9,2446.7,0.00324238]
[1725493640574,3.22871,2446.9,2446.7,0.00324238]
[1725493640771,2.82,2446.9,2446.7,0.41197238]
[1725493640977,3.2287,2446.9,2446.7,0.00324238]
[1725493641567,2.82,2446.9,2446.7,0.41197238]
[1725493641871,0.00612132,2447.0,2446.9,0.4087]
[1725493642184,0.00612132,2447.0,2446.9,0.7728]
[1725493643977,0.095,2447.4,2447.0,1.02171]
[1725493644174,6.931,2447.6,2447.3,0.40862]
[1725493644175,7.33959,2447.6,2447.3,0.40862]
[1725493644369,3.22859,2447.6,2447.3,0.40862]
[1725493644674,3.22859,2447.6,2447.1,3.5961]
[1725493644675,3.22859,2447.6,2447.4,0.40861]
[1725493645068,0.4086,2447.5,2447.3,0.00612132]
[1725493645267,3.22859,2447.6,2447.3,0.41474132]
[1725493645468,0.4086,2447.5,2447.3,0.41474132]
[1725493645870,0.4086,2447.5,2447.3,0.00612132]
[1725493646374,0.4086,2447.5,2447.3,0.41475132]
[1725493646569,0.40861,2447.4,2447.3,0.00612132]
[1725493646967,6.0278,2447.6,2447.3,0.00612132]
[1725493647169,0.40861,2447.4,2447.3,0.00612132]
[1725493648667,0.40861,2447.5,2447.3,0.00612132]
[1725493648874,0.40861,2447.4,2447.3,0.00612132]
[1725493650673,0.4086,2447.5,2447.3,0.00612132]
[1725493650880,6.41,2447.6,2447.3,0.00612132]
[1725493651084,0.4086,2447.5,2447.3,0.41475132]
[1725493651678,3.6164,2447.5,2447.3,0.00612132]
[1725493652077,0.40861,2447.4,2447.3,0.00612132]
[1725493652580,3.2078,2447.5,2447.3,0.41474132]
[1725493652776,3.2078,2447.5,2447.4,0.3806]
[1725493653457,3.6164,2447.5,2447.4,0.3806]
[1725493654874,3.2078,2447.5,2447.4,0.3806]
[1725493655076,3.2078,2447.5,2447.4,0.78921]
[1725493655677,2.82,2447.6,2447.4,0.78921]
[1725493655875,3.22858,2447.6,2447.4,0.78921]
[1725493657283,0.4086,2447.5,2447.4,0.3806]
[1725493658686,3.22859,2447.6,2447.4,0.3806]
[1725493658889,3.22859,2447.6,2447.4,0.78921]
[1725493659077,3.22859,2447.6,2447.4,0.3806]
[1725493659278,3.22859,2447.6,2447.4,0.78921]
[1725493659780,6.43639,2447.6,2447.4,0.78921]
[1725493661089,0.4086,2447.5,2447.4,0.3806]
[1725493663183,6.0278,2447.6,2447.4,0.3806]
[1725493663184,6.43639,2447.6,2447.4,0.3806]
[1725493663688,0.4086,2447.5,2447.4,0.3806]
[1725493667658,6.43639,2447.6,2447.4,0.3806]
[1725493667752,0.00612132,2447.7,2447.4,3.5884]
[1725493667896,0.00612132,2447.7,2447.6,0.40858]
[1725493668090,0.00612132,2447.7,2447.5,1.17489]
[1725493668294,0.00612132,2447.7,2447.5,3.9741]
[1725493668599,0.00612132,2447.7,2447.5,4.38269]
[1725493669492,0.41468132,2447.7,2447.5,3.9741]
[1725493669693,0.00612132,2447.7,2447.5,0.7663]
[1725493670285,0.00612132,2447.7,2447.5,1.17489]
[1725493670792,0.41468132,2447.7,2447.5,0.7663]
[1725493671293,0.76988132,2447.7,2447.5,0.7663]
[1725493671997,0.36132132,2447.7,2447.4,0.78921]
[1725493673292,0.76989132,2447.7,2447.4,0.78921]
[1725493674389,0.76989132,2447.7,2447.5,0.3607]
[1725493674592,0.76989132,2447.7,2447.6,0.3764]
[1725493675193,0.36132132,2447.7,2447.6,0.3764]
[1725493675602,0.76988132,2447.7,2447.6,0.3764]
[1725493675993,0.41468132,2447.7,2447.6,0.3764]
[1725493677202,0.00612132,2447.7,2447.6,0.3764]
[1725493677403,0.41468132,2447.7,2447.6,0.3764]
[1725493678409,0.00612132,2447.7,2447.6,0.3764]
[1725493680492,0.41468132,2447.7,2447.6,0.3764]
[1725493682035,0.00612132,2447.7,2447.5,0.3607]
[1725493682097,0.00612132,2447.7,2447.3,3.62254132]
[1725493682098,1.43015,2447.4,2447.3,0.00612132]
[1725493682402,8.45169,2447.4,2447.3,0.00612132]
[1725493682606,15.35809,2447.4,2447.3,0.00612132]
[1725493682800,15.75179,2447.4,2447.3,0.00612132]
[1725493683302,1.43045,2446.9,2446.8,0.095]
[1725493683506,1.43045,2446.9,2446.7,0.00324238]
[1725493683507,1.4305,2446.8,2446.7,0.00324238]
[1725493683713,1.02183,2446.7,2446.2,0.095]
[1725493684008,1.02183,2446.7,2445.9,0.095]
[1725493684009,0.40882,2446.2,2445.9,0.095]
[1725493684197,0.40882,2446.2,2445.7,0.3912]
[1725493684397,0.40895,2445.4,2444.9,1.04854053]
[1725493684599,2.82,2445.4,2444.8,3.5834]
[1725493685109,3.2078,2445.5,2445.1,3.2078]
[1725493685296,3.2078,2445.5,2444.6,1.59499257]
[1725493685297,0.409,2445.1,2444.6,0.3756]
[1725493685502,2.82,2445.2,2444.6,0.3756]
[1725493685698,3.5743,2445.5,2444.6,0.3756]
[1725493685699,6.0278,2445.5,2444.7,3.599]
[1725493686003,3.2078,2445.1,2444.7,3.599]
[1725493686215,2.82,2445.1,2444.7,0.3912]
[1725493686403,2.82,2445.1,2444.4,3.2078]
[1725493686906,3.2078,2445.4,2444.9,3.2078]
[1725493687211,0.00613459,2445.4,2445.0,1.49431]
[1725493687511,2.82,2445.3,2445.0,4.70211]
[1725493687804,0.00613459,2445.4,2445.0,8.3827]
[1725493688007,2.82,2445.9,2445.3,3.2078]
[1725493688212,2.82,2445.7,2445.3,3.2078]
[1725493690403,3.22894,2445.5,2445.3,0.00613459]
[1725493691008,2.82,2445.5,2445.3,0.00613459]
[1725493691806,6.9096,2445.5,2445.3,0.00613459]
[1725493692000,2.82,2445.5,2445.3,0.00613459]
[1725493693302,4.49855,2445.4,2445.3,0.00613459]
[1725493693507,8.45115,2445.4,2445.3,0.00613459]
[1725493693708,17.88458,2445.4,2444.7,3.2078]
[1725493694010,2.82,2444.8,2444.7,3.2078]
[1725493694309,3.22905,2444.8,2444.5,0.3646]
[1725493695409,2.82,2444.6,2444.4,3.5658]
[1725493695715,3.22909,2444.6,2444.4,0.358]
[1725493696009,0.4091,2444.5,2444.4,0.358]
[1725493696214,7.299,2444.5,2443.7,3.2078]
[1725493696412,7.299,2444.5,2442.8,4.197]
[1725493696413,3.22921,2443.8,2443.4,3.61708]
[1725493696712,2.82,2444.1,2444.0,0.40918]
[1725493696909,2.82,2444.1,2444.0,3.61698]
[1725493697410,2.82613459,2444.3,2444.1,0.40915]
[1725493697714,2.82613459,2444.3,2444.2,0.40915]
[1725493699007,0.095,2444.8,2444.7,0.40906]
[1725493699211,2.82,2444.9,2444.8,0.40905]
[1725493699709,2.82,2444.9,2444.6,3.2078]
[1725493699710,2.82,2445.1,2445.0,0.40901]
[1725493699913,3.77613459,2445.3,2445.0,0.40901]
[1725493700208,3.77613459,2445.3,2444.9,3.2078]
[1725493700414,3.77613459,2445.3,2445.1,0.40899]
[1725493701206,3.77613459,2445.3,2445.0,0.40901]
[1725493701510,4.18509459,2445.3,2445.0,0.40901]
[1725493702318,4.18509459,2445.3,2444.9,0.40902]
[1725493702705,4.18509459,2445.3,2444.8,3.94703459]
[1725493702911,4.18509459,2445.3,2445.0,0.40901]
[1725493704512,3.77613459,2445.3,2445.1,0.409]
[1725493705010,3.77613459,2445.3,2445.0,0.409]
[1725493705204,3.77613459,2445.3,2445.1,0.40899]
[1725493706315,3.77613459,2445.3,2445.0,0.409]
[1725493706820,0.40903,2444.9,2444.8,0.00613459]
[1725493707309,4.49943,2444.9,2444.8,0.00613459]
[1725493708613,0.40903,2444.9,2444.8,0.00613459]
[1725493708808,6.98393459,2445.3,2444.8,0.00613459]
[1725493709012,6.98393459,2445.3,2445.0,0.409]
[1725493709320,6.98393459,2445.3,2445.1,0.409]
[1725493709505,6.98393459,2445.3,2445.0,0.409]
[1725493710019,7.39289459,2445.3,2445.0,0.409]
[1725493710215,6.98393459,2445.3,2444.9,1.1353]
[1725493710522,7.39290459,2445.3,2445.0,0.40901]
[1725493711612,4.18510459,2445.3,2445.0,0.40901]
[1725493712111,3.77613459,2445.3,2445.0,0.40901]
[1725493712310,3.77613459,2445.3,2445.1,0.409]
[1725493712510,3.77613459,2445.3,2444.9,1.1353]
[1725493712718,3.77613459,2445.3,2445.1,0.40899]
[1725493713318,3.77613459,2445.3,2445.0,0.409]
[1725493713319,4.18510459,2445.3,2445.0,0.409]
[1725493714415,4.18510459,2445.3,2444.9,1.1353]
[1725493714615,4.18510459,2445.3,2445.0,0.409]
[1725493715221,3.77613459,2445.3,2445.1,0.409]
[1725493716116,3.77613459,2445.3,2444.9,1.1353]
[1725493716318,4.18510459,2445.3,2445.0,0.40901]
[1725493716520,3.77613459,2445.3,2445.1,0.40899]
[1725493716922,4.18510459,2445.3,2445.0,0.40901]
[1725493717324,4.56930459,2445.3,2445.0,0.40901]
[1725493718918,4.16033459,2445.3,2445.1,0.40899]
[1725493719122,3.77613459,2445.3,2445.2,0.40898]
[1725493720519,0.00613459,2445.3,2445.2,0.40898]
[1725493723716,0.00613459,2445.3,2445.1,0.40899]
[1725493725314,0.00613459,2445.3,2444.9,1.131]
[1725493725628,0.00613459,2445.3,2445.0,0.409]
[1725493727026,0.00613459,2445.3,2445.1,0.40899]
[1725493727230,0.00613459,2445.3,2444.9,1.131]
[1725493727531,0.00613459,2445.3,2445.1,0.40899]
[1725493728428,0.00613459,2445.3,2444.9,1.131]
[1725493728641,0.00613459,2445.3,2445.1,0.40899]
[1725493731723,0.00613459,2445.3,2445.2,0.40898]
[1725493731921,0.00613459,2445.3,2445.1,0.40899]
[1725493732135,0.00613459,2445.3,2445.2,0.40898]
[1725493732431,0.00613459,2445.3,2445.1,0.40898]
[1725493733533,0.00613459,2445.3,2445.2,0.40898]
[1725493735332,0.00613459,2445.3,2445.2,4.49858]
[1725493735836,2.925,2445.8,2445.7,0.4089]
[1725493736035,2.83,2445.8,2445.7,0.4089]
[1725493736535,2.83,2445.8,2445.7,0.7798]
[1725493736728,2.83,2445.8,2445.7,1.1402]
[1725493737835,2.83613459,2446.0,2445.9,0.40886]
[1725493738631,0.00613459,2446.0,2445.9,0.40886]
[1725493740340,0.00613459,2446.0,2445.8,0.77407]
[1725493740538,0.4089,2445.8,2445.4,0.40895]
[1725493740733,2.83,2445.9,2445.4,0.79275]
[1725493740734,2.83,2445.6,2445.4,0.79275]
[1725493740936,2.83,2445.6,2445.4,8.99930023]
[1725493741240,3.23892,2445.6,2445.4,0.3838]
[1725493743042,0.40893,2445.5,2445.3,3.2078]
[1725493743239,2.83,2445.4,2445.3,3.2078]
[1725493743740,3.23895,2445.4,2445.3,3.2078]
[1725493744541,2.83,2445.4,2445.3,3.2078]
[1725493744742,3.23895,2445.4,2445.3,3.2078]
[1725493745435,2.83,2445.4,2445.3,3.2078]
[1725493745632,3.23895,2445.4,2445.3,3.2078]
[1725493745831,3.23895,2445.4,2445.0,0.3903]
[1725493746035,0.40897,2445.3,2445.0,0.79931]
[1725493746232,0.40897,2445.3,2445.0,4.00711]
[1725493746642,0.40897,2445.3,2445.1,3.2078]
[1725493746939,2.83,2445.4,2445.1,3.61679]